fUSD/lending_fUSD_20240726
["ID","MTS","AMOUNT","RATE_DAILY","PERIOD"]
[333285820,1722021043461,-1557.91381239,0.00011,2]
[333285823,1722021043473,-39212.85223734,0.00011,2]
[333285857,1722021043801,-296.18044634,0.00011,2]
[333285859,1722021043812,-1625.7938459,0.00011,2]
[333285861,1722021043823,-24935.22661887,0.00011,2]
[333285865,1722021043853,-494.33920324,0.00011,2]
[333285867,1722021043864,-9022.73171167,0.00011,2]
[333285869,1722021043875,-632.52348141,0.00011,2]
[333285872,1722021043899,-735.84618587,0.00011,2]
[333286037,1722021045684,-7000.0,0.00011,2]
[333286164,1722021047680,-1064.7,0.00011,2]
[333286182,1722021047846,-1653.15195,0.00011,2]
[333286184,1722021047859,-302.31393825,0.00011,2]
[333286189,1722021047890,-2733.97298494,0.00011,2]
[333286191,1722021047902,-1729.70174362,0.00011,2]
[333286337,1722021291466,-1250.0,0.0001,2]
[333286338,1722021306550,-200.0,0.0001018,2]
[333286341,1722022099560,10000.0,0.00016,120]
[333286357,1722022231730,-296.67205621,8.218e-05,2]
[333286358,1722022231789,-88.32794379,8.218e-05,2]
[333286359,1722022231799,-494.59710358,8.219e-05,2]
[333286360,1722022231810,-39.77289642,8.219e-05,2]
[333286361,1722022231820,-250.0,9.974e-05,2]
[333286362,1722022231832,-500.0,0.0001,2]
[333286363,1722022231842,-300.0,0.00010007,2]
[333286364,1722022231852,-142.07842399,0.00010008,2]
[333286365,1722022231863,-311.84172578,0.00010008,2]
[333286366,1722022231879,-833.36001832,0.00010008,2]
[333286367,1722022231890,-537.12016184,0.00010008,2]
[333286368,1722022231902,-315.29707946,0.00010008,2]
[333286369,1722022231914,-3360.830244,0.00010008,2]
[333286370,1722022231925,-269.0000005,0.00010008,2]
[333286371,1722022231937,-551.29288503,0.00010008,2]
[333286372,1722022232086,-6310.96790771,0.00010008,2]
[333286373,1722022232098,-11258.21155337,0.00010008,2]
[333286374,1722022232108,-840.0,0.00010023,2]
[333286375,1722022232117,-2500.0,0.0001008,2]
[333286376,1722022232127,-4797.62,0.00010106,2]
[333286377,1722022232137,-499.99,0.00010266,2]
[333286378,1722022232147,-534.37,0.00010479,2]
[333286379,1722022232157,-500.0,0.000105,2]
[333286380,1722022232167,-12630.00000001,0.0001088,2]
[333286381,1722022232177,-1000.0,0.00010899,2]
[333286382,1722022232187,-893.2677,0.00010899,2]
[333286383,1722022232196,-174.95524457,0.000109,2]
[333286384,1722022232206,-2364.5869,0.000109,2]
[333286385,1722022232216,-4111.38841208,0.000109,2]
[333286386,1722022232226,-855.84,0.00010958,2]
[333286387,1722022232236,-1372.32437006,0.0001097,2]
[333286388,1722022232246,-1000.0,0.0001097,2]
[333286389,1722022232255,-399.43625602,0.00010998,2]
[333286390,1722022232265,-500.0,0.00010998,2]
[333286391,1722022232274,-249.146,0.00010998,2]
[333286392,1722022232284,-390.54,0.00010999,2]
[333286393,1722022232294,-500.0,0.00010999,2]
[333286394,1722022232303,-209.01772362,0.00010999,2]
[333286395,1722022232313,-630310.6140399,0.00011,2]
[333286396,1722022232324,-2852.80510775,0.00011,2]
[333286397,1722022232339,-415.09721781,0.00011,2]
[333286398,1722022232350,-308.807424,0.00011,2]
[333286399,1722022234002,-719.56763967,0.00011,2]
[333286404,1722022234315,-1205.48616,0.00011,2]
[333286405,1722022234326,-3440.07294455,0.00011,2]
[333286406,1722022234339,-2039.97,0.00011,2]
[333286407,1722022234351,-2270.21681511,0.00011,2]
[333286408,1722022234362,-406.55275766,0.00011,2]
[333286409,1722022234373,-10152.74573,0.00011,2]
[333286410,1722022234385,-2323.0117673,0.00011,2]
[333286412,1722022238122,-3000.0,0.0001089,2]
[333286413,1722022238132,-1480508.48635048,0.00011,2]
[333286414,1722022238143,-345.0,0.00011,2]
[333286415,1722022238155,-2654.91902682,0.00011,2]
[333286416,1722022238166,-2994.27627485,0.00011,2]
[333286417,1722022238189,-1570.57768242,0.00011,2]
[333286419,1722022238200,-33412.84000002,0.00011,2]
[333286424,1722022238243,-1479.70572838,0.00011,2]
[333286426,1722022238255,-1908.71029907,0.00011,2]
[333286428,1722022238266,-19058.04257178,0.00011,2]
[333286444,1722022240056,-19794.0,0.00011,2]
[333286445,1722022240068,-4074.906152,0.00011,2]
[333286446,1722022240079,-701.97351015,0.00011,2]
[333286447,1722022240093,-655.13000002,0.00011,2]
[333286448,1722022240464,-1703.22465,0.00011,2]
[333286454,1722022242776,-1259.08602691,0.00011,2]
[333286455,1722022242925,-313.23889078,0.00011,2]
[333286456,1722022243068,-10816.61358908,0.00011,2]
[333286470,1722022245806,-366.407,0.00011,2]
[333286472,1722022245971,-307.44379576,0.00011,2]
[333286473,1722022246621,-376.53086596,0.00011,2]
[333286474,1722022246634,-933.17494973,0.00011,2]
[333286475,1722022246647,-953.91132996,0.00011,2]
[333286476,1722022246685,-556.44944103,0.00011,2]
[333286477,1722022246697,-323.60861225,0.00011,2]
[333286478,1722022246709,-678.38,0.00011,2]
[333286490,1722022467620,40000.0,0.0002,90]
[333286491,1722022487913,10000.0,0.0002,90]
[333286492,1722022502401,10000.0,0.0002,90]
[333286493,1722022518753,9873.0,0.0002,90]
[333286531,1722023432671,-502.49,8.219e-05,2]
[333286532,1722023432680,-500.0,0.0001,2]
[333286533,1722023432689,-500.0,0.0001,2]
[333286534,1722023432699,-273.97,0.0001,2]
[333286535,1722023432709,-500.0,0.0001,2]
[333286536,1722023432916,-90.92584379,0.0001,2]
[333286537,1722023432936,-1159.07415621,0.0001,2]
[333286538,1722023432946,-453.99349827,0.0001,2]
[333286539,1722023432955,-6474.94674379,0.00010066,2]
[333286540,1722023432966,-853.850446,0.00010066,2]
[333286541,1722023432978,-786.87675746,0.00010066,2]
[333286542,1722023433001,-1004.42892586,0.00010066,2]
[333286543,1722023433017,-841.88482517,0.00010066,2]
[333286544,1722023433073,-718.42740746,0.00010066,2]
[333286545,1722023433093,-13219.58489426,0.00010066,2]
[333286546,1722023433103,-1345.4023,0.0001008,2]
[333286547,1722023433112,-348.7569,0.0001008,2]
[333286548,1722023433122,-12133.0553,0.0001008,2]
[333286549,1722023433132,-672.0,0.00010083,2]
[333286550,1722023433142,-250.0,0.000101,2]
[333286551,1722023433155,-328.0,0.00010203,2]
[333286552,1722023433165,-499.99,0.00010203,2]
[333286553,1722023433174,-502.49,0.00010483,2]
[333286554,1722023433184,-15585.4888,0.000108,2]
[333286555,1722023433194,-425.44,0.000108,2]
[333286556,1722023433204,-447.8963,0.000109,2]
[333286557,1722023433214,-3355.55,0.000109,2]
[333286558,1722023433227,-1000.0,0.000109,2]
[333286559,1722023433237,-467.1991,0.000109,2]
[333286560,1722023433247,-1559.971896,0.000109,2]
[333286561,1722023433257,-1000.0,0.000109,2]
[333286562,1722023433266,-321.44547856,0.000109,2]
[333286563,1722023433276,-170.5948962,0.000109,2]
[333286564,1722023433285,-293.64006704,0.000109,2]
[333286565,1722023433295,-253.432325,0.000109,2]
[333286566,1722023433305,-537.68774118,0.000109,2]
[333286567,1722023433315,-12000.0,0.000109,2]
[333286568,1722023433325,-1465.72066178,0.000109,2]
[333286569,1722023433334,-500.0,0.00010958,2]
[333286570,1722023433344,-500.0,0.00010958,2]
[333286571,1722023433353,-350.54038653,0.00010958,2]
[333286572,1722023433362,-500.0,0.00010958,2]
[333286573,1722023433373,-500.0,0.00010958,2]
[333286574,1722023433383,-500.0,0.00010958,2]
[333286575,1722023433394,-169.74617488,0.00010958,2]
[333286576,1722023433403,-482.70627952,0.00010958,2]
[333286577,1722023433414,-500.0,0.00010958,2]
[333286578,1722023433425,-500.0,0.00010958,2]
[333286579,1722023433435,-519.32607184,0.00010958,2]
[333286580,1722023433446,-500.0,0.00010958,2]
[333286581,1722023433456,-535.03565181,0.00010958,2]
[333286582,1722023433467,-500.0,0.00010958,2]
[333286583,1722023433477,-500.0,0.00010958,2]
[333286584,1722023433487,-500.0,0.00010958,2]
[333286585,1722023433497,-500.0,0.00010958,2]
[333286586,1722023433507,-312.34889394,0.00010958,2]
[333286587,1722023433517,-500.0,0.00010958,2]
[333286588,1722023433526,-351.02325722,0.00010958,2]
[333286589,1722023433536,-1000.0,0.0001097,2]
[333286590,1722023433546,-695.25125047,0.0001097,2]
[333286591,1722023433556,-1216.37287104,0.00010997,2]
[333286592,1722023433566,-3420.475,0.00010998,2]
[333286593,1722023433575,-500.0,0.00010999,2]
[333286594,1722023433585,-500.0,0.00010999,2]
[333286595,1722023433595,-500.0,0.00010999,2]
[333286596,1722023433605,-500.0,0.00010999,2]
[333286597,1722023433615,-500.0,0.00010999,2]
[333286598,1722023433627,-500.0,0.00010999,2]
[333286599,1722023433638,-500.0,0.00010999,2]
[333286600,1722023433648,-500.0,0.00010999,2]
[333286601,1722023433658,-500.0,0.00010999,2]
[333286602,1722023433668,-500.0,0.00010999,2]
[333286603,1722023433678,-500.0,0.00010999,2]
[333286604,1722023433688,-500.0,0.00010999,2]
[333286605,1722023433697,-430.40012191,0.00010999,2]
[333286606,1722023433707,-1504.47847447,0.00010999,2]
[333286607,1722023433717,-500.0,0.00010999,2]
[333286608,1722023433727,-383.95,0.00010999,2]
[333286609,1722023433738,-500.0,0.00010999,2]
[333286610,1722023433748,-159.27577004,0.00010999,2]
[333286611,1722023433759,-311.76432359,0.00010999,2]
[333286612,1722023433769,-500.0,0.00010999,2]
[333286613,1722023433778,-166.24,0.00010999,2]
[333286614,1722023433787,-216.42751419,0.00010999,2]
[333286615,1722023433797,-500.0,0.00010999,2]
[333286616,1722023433807,-553.01,0.00010999,2]
[333286617,1722023433817,-586.01,0.00010999,2]
[333286618,1722023433826,-498.14708602,0.00010999,2]
[333286619,1722023433836,-500.0,0.00010999,2]
[333286620,1722023433845,-500.0,0.00010999,2]
[333286621,1722023433856,-500.0,0.00010999,2]
[333286622,1722023433865,-500.0,0.00010999,2]
[333286623,1722023433878,-500.0,0.00010999,2]
[333286624,1722023433887,-500.0,0.00010999,2]
[333286625,1722023433897,-500.0,0.00010999,2]
[333286626,1722023433908,-500.0,0.00010999,2]
[333286627,1722023433919,-500.0,0.00010999,2]
[333286628,1722023433929,-500.0,0.00010999,2]
[333286629,1722023433940,-49126.12237493,0.00011,2]
[333286630,1722023434176,-58771.25034392,0.00011,2]
[333286631,1722023434189,-599772.63812555,0.00011,2]
[333286632,1722023434199,-670627.29840172,0.00011,2]
[333286637,1722023438078,-7522.82400001,0.00011,2]
[333286638,1722023438185,-1954.87549614,0.00011,2]
[333286649,1722023440021,-1477.78510044,0.00011,2]
[333286650,1722023440033,-2382.17335,0.00011,2]
[333286651,1722023440044,-1461.26790131,0.00011,2]
[333286652,1722023440392,-2920.57866749,0.00011,2]
[333286653,1722023440446,-12880.32165238,0.00011,2]
[333286655,1722023443012,-1464.06406546,0.00011,2]
[333286656,1722023443023,-1279.97005618,0.00011,2]
[333286657,1722023443034,-1318.27107175,0.00011,2]
[333286658,1722023443045,-1245.28478886,0.00011,2]
[333286659,1722023443067,-909.2198716,0.00011,2]
[333286660,1722023443078,-3939.92439593,0.00011,2]
[333286661,1722023443121,-1364.2199562,0.00011,2]
[333286662,1722023443132,-448.95942964,0.00011,2]
[333286663,1722023443146,-694.5375725,0.00011,2]
[333286664,1722023443157,-935.898057,0.00011,2]
[333286665,1722023443168,-833.87987711,0.00011,2]
[333286666,1722023443179,-6243.43439683,0.00011,2]
[333286667,1722023443190,-62510.91640953,0.00011,2]
[333286668,1722023443201,-1648.37425309,0.00011,2]
[333286669,1722023443212,-374.72962927,0.00011,2]
[333286670,1722023443241,-15811.51478153,0.00011,2]
[333286671,1722023443252,-4616.80177371,0.00011,2]
[333286672,1722023443296,-419.13536791,0.00011,2]
[333286678,1722023446031,-623.93,0.00011,2]
[333286680,1722023446645,-480.224745,0.00011,2]
[333286682,1722023446658,-660.32229313,0.00011,2]
[333286684,1722023446669,-820.72499999,0.00011,2]
[333286685,1722023446683,-6960.09848004,0.00011,2]
[333286686,1722023446695,-2784.40376051,0.00011,2]
[333286687,1722023446707,-735.26434231,0.00011,2]
[333286688,1722023446719,-810.7547,0.00011,2]
[333286689,1722023446730,-10713.0,0.00011,2]
[333286690,1722023446741,-3434.69873136,0.00011,2]
[333286713,1722024633036,-452.24,8.219e-05,2]
[333286714,1722024633045,-537.6,9.762e-05,2]
[333286715,1722024633055,-250.0,9.776e-05,2]
[333286716,1722024633064,-3100.0,9.9e-05,3]
[333286717,1722024633074,-300.0,9.999e-05,2]
[333286718,1722024633083,-2305.95989758,0.0001,3]
[333286725,1722024638200,-462.4,9.676e-05,2]
[333286726,1722024638211,-202.3658,0.0001,3]
[333286727,1722024638308,-525.76168745,0.0001,3]
[333286728,1722024638362,-402.64013706,0.0001,3]
[333286729,1722024638417,-2863.27247791,0.0001,3]
[333286730,1722024638428,-23900.0,0.00010005,2]
[333286731,1722024638440,-9400.0,0.000101,3]
[333286732,1722024638452,-150.0,0.00010192,2]
[333286733,1722024638464,-150.0,0.00010192,2]
[333286734,1722024638475,-150.0,0.00010192,2]
[333286735,1722024638487,-12600.0,0.000102,3]
[333286736,1722024638499,-762.54,0.00010241,2]
[333286737,1722024638513,-15700.0,0.000103,3]
[333286738,1722024638527,-3589.24,0.000103,2]
[333286739,1722024638539,-499.99,0.00010357,2]
[333286740,1722024638550,-339.19,0.00010378,2]
[333286741,1722024638562,-301.66,0.00010378,2]
[333286742,1722024638573,-665.34,0.00010378,2]
[333286743,1722024638583,-286.7,0.00010378,2]
[333286744,1722024638593,-150.0,0.00010378,2]
[333286745,1722024638603,-150.0,0.00010378,2]
[333286746,1722024638614,-3100.0,0.000104,3]
[333286747,1722024638627,-2070.0,0.00010449,2]
[333286748,1722024638640,-150.0,0.00010466,2]
[333286749,1722024638650,-150.0,0.00010466,2]
[333286750,1722024638662,-150.0,0.00010466,2]
[333286751,1722024638674,-452.24,0.00010477,2]
[333286752,1722024638685,-3100.0,0.000105,3]
[333286753,1722024638695,-3100.0,0.000106,3]
[333286754,1722024638705,-3100.0,0.000107,3]
[333286755,1722024638717,-3618.0,0.000108,3]
[333286756,1722024638728,-462.4,0.00010885,2]
[333286757,1722024638739,-220.94,0.00010904,3]
[333286758,1722024638750,-1000.0,0.0001097,2]
[333286759,1722024638763,-500.0,0.0001097,2]
[333286760,1722024638775,-537.6,0.00010982,2]
[333286761,1722024638786,-62461.5716212,0.00010997,2]
[333286762,1722024638799,-323.2002075,0.00010998,2]
[333286763,1722024638811,-621.0,0.00010998,2]
[333286764,1722024638822,-420.0,0.00010999,2]
[333286765,1722024638833,-333186.56662745,0.00011,2]
[333286766,1722024638844,-5179.50131069,0.00011,2]
[333286767,1722024638856,-292220.88040819,0.00011,2]
[333286768,1722024638867,-3171719.63925668,0.00011,2]
[333286769,1722024638891,-435.35854429,0.00011,2]
[333286770,1722024638904,-3126.48485974,0.00011,2]
[333286772,1722024640259,-1634.21999999,0.00011,2]
[333286773,1722024640469,-800.20287182,0.00011,2]
[333286774,1722024640528,-31971.56757775,0.00011,2]
[333286775,1722024640541,-3470.13415581,0.00011,2]
[333286793,1722024643166,-62510.91640953,0.00011,2]
[333286794,1722024643180,-678.01,0.00011,2]
[333286795,1722024643271,-708.18,0.0001078,2]
[333286796,1722024643286,-350.04995358,0.0001078,2]
[333286797,1722024643298,-4527.44605167,0.00011,2]
[333286798,1722024643379,-1225.65774576,0.00011,2]
[333286799,1722024643393,-674.88,0.00011,2]
[333286812,1722024647378,-662.88088164,0.000109,2]
[333286813,1722024647387,-1106.16136076,0.00011,2]
[333286814,1722024647431,-6766.199,0.00011,2]
[333286817,1722024647888,-741.09746142,0.00011,2]
[333286851,1722024648234,-1709.36998137,0.00011,2]
[333287908,1722025291783,912.02058194,0.000185,90]
[333287909,1722025361357,200.0,0.00015,30]
[333287952,1722025832733,-473.92,8.219e-05,2]
[333287953,1722025832742,-500.0,9.981e-05,2]
[333287954,1722025832751,-300.0,9.981e-05,2]
[333287955,1722025832761,-300.0,9.999e-05,2]
[333287956,1722025832771,-907.28419989,0.0001,2]
[333287957,1722025832891,-342.71580011,0.0001,2]
[333287958,1722025832900,-529.96325701,0.0001,2]
[333287959,1722025833033,-4152.53179509,0.0001,2]
[333287960,1722025833042,-6431.94610793,0.0001,2]
[333287961,1722025833052,-150.0,0.00010001,2]
[333287962,1722025833062,-250.0,0.00010002,2]
[333287963,1722025833072,-4089.74,0.00010002,2]
[333287964,1722025833081,-17133.0,0.00010002,2]
[333287965,1722025833091,-722.56,0.00010028,2]
[333287966,1722025833100,-164.39,0.00010048,2]
[333287967,1722025833109,-4582.09,0.00010094,2]
[333287968,1722025833119,-473.92,0.00010472,2]
[333287969,1722025833128,-151.31735173,0.000105,3]
[333287970,1722025833137,-1124.45247998,0.0001078,2]
[333287971,1722025833146,-1033.62683816,0.0001078,2]
[333287972,1722025833155,-355.75,0.000108,2]
[333287973,1722025833164,-302.37,0.000108,2]
[333287974,1722025833173,-265.88,0.000108,2]
[333287975,1722025833182,-150.0,0.000108,2]
[333287976,1722025833193,-47084.8847839,0.0001088,2]
[333287977,1722025833202,-1286.00933498,0.00010899,2]
[333287978,1722025833211,-1286.0093349,0.00010899,2]
[333287979,1722025833221,-1286.0093349,0.00010899,2]
[333287980,1722025833230,-1286.0093349,0.00010899,2]
[333287981,1722025833239,-1286.0093349,0.00010899,2]
[333287982,1722025833248,-1286.0093349,0.00010899,2]
[333287983,1722025833258,-1286.0093349,0.00010899,2]
[333287984,1722025833267,-1286.0093349,0.00010899,2]
[333287985,1722025833277,-1286.0093349,0.000109,2]
[333287986,1722025833286,-2628.3613,0.000109,2]
[333287987,1722025833295,-5005.357,0.000109,2]
[333287988,1722025833305,-1112.8407,0.000109,2]
[333287989,1722025833314,-347.947,0.000109,2]
[333287990,1722025833323,-851.9813,0.000109,2]
[333287991,1722025833333,-1000.0,0.000109,2]
[333287992,1722025833342,-1192.0183,0.000109,2]
[333287993,1722025833351,-341.18979234,0.000109,2]
[333287994,1722025833361,-1286.0093349,0.000109,2]
[333287995,1722025833370,-238.9723294,0.000109,2]
[333287996,1722025833379,-6952.37151102,0.000109,2]
[333287997,1722025833389,-500.0,0.00010911,2]
[333287998,1722025833399,-500.0,0.00010912,2]
[333287999,1722025833408,-500.0,0.00010959,2]
[333288000,1722025833417,-1000.0,0.0001097,2]
[333288001,1722025833427,-500.0,0.0001097,2]
[333288002,1722025833436,-52852.8998535,0.00010994,2]
[333288003,1722025833445,-828.479618,0.00010997,2]
[333288004,1722025833455,-194.69317521,0.00010999,2]
[333288005,1722025833465,-4000.0,0.00010999,3]
[333288006,1722025833474,-279.0,0.00010999,2]
[333288007,1722025833484,-216805.16750175,0.00011,2]
[333288009,1722025833493,-31536.04464629,0.00011,2]
[333288010,1722025833505,-561.51132701,0.00011,2]
[333288011,1722025833517,-1104.46932817,0.00011,2]
[333288012,1722025833536,-1549.74687682,0.00011,2]
[333288013,1722025833572,-341.48088377,0.00011,2]
[333288014,1722025833584,-360.67999992,0.00011,2]
[333288015,1722025833596,-471.00981261,0.00011,2]
[333288016,1722025833607,-2005.41,0.00011,2]
[333288017,1722025833620,-2377.36767578,0.00011,2]
[333288018,1722025833631,-1865.69249295,0.00011,2]
[333288019,1722025833642,-13383.1972599,0.00011,2]
[333288020,1722025833653,-298.3,0.00011,2]
[333288021,1722025833664,-465976.48128726,0.00011,2]
[333288022,1722025833737,-1894.13633726,0.00011,2]
[333288023,1722025833748,-1241.38386762,0.00011,2]
[333288024,1722025833759,-4731.55964216,0.00011,2]
[333288025,1722025833770,-555.90330277,0.00011,2]
[333288026,1722025833798,-327.85685687,0.00011,2]
[333288027,1722025833809,-17700.99197076,0.00011,2]
[333288028,1722025833820,-1286.32241983,0.00011,2]
[333288029,1722025833832,-6558.09753364,0.00011,2]
[333288030,1722025833843,-4642.67331598,0.00011,2]
[333288035,1722025838404,-614.60712979,0.00011,2]
[333288036,1722025838465,-33728.28597135,0.00011,2]
[333288037,1722025838477,-5601.99999999,0.00011,2]
[333288038,1722025838700,-3892.57385441,0.00011,2]
[333288053,1722025840394,-899.49864,0.00011,2]
[333288054,1722025840406,-7114.554265,0.00011,2]
[333288055,1722025840452,-6315.3454475,0.00011,2]
[333288056,1722025840464,-34179.145,0.00011,2]
[333288057,1722025840570,-13160.6,0.00011,2]
[333288058,1722025840630,-211020.62798804,0.00011,2]
[333288059,1722025840640,-127779.37201896,0.00011,2]
[333288060,1722025840653,-1620.40557737,0.00011,2]
[333288061,1722025840664,-2024.03696978,0.00011,2]
[333288062,1722025840676,-11222.92795268,0.00011,2]
[333288063,1722025840690,-23164.42780868,0.00011,2]
[333288081,1722025843299,-368.5,0.00011,2]
[333288084,1722025843412,-62510.91640953,0.00011,2]
[333288085,1722025843424,-1137.45899357,0.00011,2]
[333288086,1722025843473,-16896.2586345,0.00011,2]
[333288138,1722025846311,-1799.29203779,0.00011,2]
[333288139,1722025846773,-339.525,0.00011,2]
[333288140,1722025846784,-856.2321508,0.00011,2]
[333288153,1722026035909,400.0,0.000185,90]
[333288154,1722026054835,600.0,0.00015,30]
[333288188,1722027031515,-693.67728353,8.119e-05,2]
[333288189,1722027031525,-140.12064963,8.219e-05,2]
[333288190,1722027031537,-302.95935037,8.219e-05,2]
[333288191,1722027031546,-15.90754949,9.894e-05,2]
[333288192,1722027031571,-182.89245051,9.894e-05,2]
[333288193,1722027031580,-2571.59,9.96e-05,2]
[333288194,1722027031590,-2244.84,9.994e-05,2]
[333288195,1722027031599,-1250.0,0.0001,2]
[333288196,1722027031608,-164.33,0.00010111,2]
[333288197,1722027031618,-164.33,0.00010128,2]
[333288198,1722027031628,-164.33,0.00010145,2]
[333288199,1722027031638,-157.68754949,0.00010161,2]
[333288200,1722027031651,-6.64245051,0.00010161,2]
[333288201,1722027031661,-266.88771825,0.00010241,2]
[333288202,1722027031674,-251.65228175,0.00010241,2]
[333288203,1722027031684,-80.31062715,0.00010241,2]
[333288204,1722027031696,-297.04785907,0.00010241,2]
[333288205,1722027031707,-2166.43151378,0.00010241,2]
[333288206,1722027031717,-542.01,0.00010241,2]
[333288207,1722027031726,-443.08,0.00010478,2]
[333288208,1722027031736,-499.99,0.00010525,2]
[333288209,1722027031745,-1000.0,0.00010625,2]
[333288210,1722027031755,-7009.73149934,0.000108,2]
[333288211,1722027031764,-1332.5861725,0.0001089,2]
[333288212,1722027031773,-21893.2407,0.00010899,2]
[333288213,1722027031783,-150.0,0.00010899,2]
[333288214,1722027031792,-22237.60165353,0.000109,2]
[333288215,1722027031803,-1706.18609322,0.000109,2]
[333288216,1722027031814,-882.40264769,0.000109,2]
[333288217,1722027031825,-1913.12,0.000109,2]
[333288226,1722027037520,-1000.0,0.00010353,2]
[333288227,1722027037529,-1592.90370479,0.000109,2]
[333288228,1722027037627,-1071.51720077,0.000109,2]
[333288229,1722027037636,-1000.0,0.000109,2]
[333288230,1722027037646,-170.59489617,0.000109,2]
[333288231,1722027037656,-702.23030608,0.000109,2]
[333288232,1722027037667,-2299.91051307,0.000109,2]
[333288233,1722027037677,-186.59641636,0.000109,2]
[333288234,1722027037686,-942.76011678,0.000109,2]
[333288235,1722027037695,-500.0,0.00010911,2]
[333288236,1722027037705,-500.0,0.00010912,2]
[333288237,1722027037714,-3000.0,0.00010998,2]
[333288238,1722027037724,-334.59626837,0.00010999,2]
[333288239,1722027037734,-283.51720375,0.00010999,2]
[333288240,1722027037743,-150.0,0.00010999,2]
[333288241,1722027037752,-903.99763957,0.00011,2]
[333288242,1722027037764,-8693.51986952,0.00011,2]
[333288243,1722027037775,-1381.24087936,0.00011,2]
[333288244,1722027037791,-3166.04903559,0.00011,2]
[333288245,1722027037808,-1270.15287127,0.00011,2]
[333288246,1722027037820,-4005.26106,0.00011,2]
[333288247,1722027037831,-33278.88494011,0.00011,2]
[333288248,1722027037842,-48619.12564229,0.00011,2]
[333288252,1722027039592,-3363.1171214,0.00011,2]
[333288253,1722027039604,-881.21664269,0.00011,2]
[333288254,1722027039651,-840.96512736,0.00011,2]
[333288255,1722027039663,-13553.6,0.00011,2]
[333288256,1722027039710,-2236.50593728,0.00011,2]
[333288257,1722027039721,-3752.33992308,0.00011,2]
[333288258,1722027039767,-174879.44435129,0.00011,2]
[333288259,1722027039776,-83622.86413674,0.00011,2]
[333288260,1722027039786,-160366.3725838,0.00011,2]
[333288505,1722027042524,-9590.54687611,0.00011,2]
[333288507,1722027042536,-752.79796392,0.00011,2]
[333288513,1722027042581,-110654.12809905,0.00011,2]
[333288516,1722027042594,-8370.02198861,0.00011,2]
[333288518,1722027042605,-920.39315509,0.00011,2]
[333288522,1722027042639,-938.09435475,0.00011,2]
[333288524,1722027042650,-4526.756931,0.00011,2]
[333288526,1722027042660,-27732.63906026,0.00011,2]
[333288529,1722027042671,-1732.275,0.00011,2]
[333288531,1722027042682,-3067.36856786,0.00011,2]
[333288533,1722027042698,-114356.89169321,0.00011,2]
[333288535,1722027042708,-423524.35692056,0.00011,2]
[333288537,1722027042719,-814.55264413,0.00011,2]
[333288539,1722027042730,-382.12258582,0.00011,2]
[333288542,1722027042741,-641.5247125,0.00011,2]
[333288544,1722027042752,-1559.45168708,0.00011,2]
[333288546,1722027042763,-273.88727203,0.00011,2]
[333288548,1722027042774,-6400.89541296,0.00011,2]
[333288550,1722027042785,-361.6920653,0.00011,2]
[333288552,1722027042796,-641.90459257,0.00011,2]
[333288555,1722027042807,-2412.0,0.00011,2]
[333288557,1722027042822,-367.69336575,0.00011,2]
[333288559,1722027042833,-504596.36593813,0.00011,2]
[333288561,1722027042843,-381.4185858,0.00011,2]
[333288565,1722027042867,-3602.05709949,0.00011,2]
[333288567,1722027042878,-6563.48299713,0.00011,2]
[333288689,1722027045517,-300.0,0.00011,2]
[333288690,1722027045583,-289.78365456,0.00011,2]
[333288691,1722027045595,-269.6096277,0.00011,2]
[333288692,1722027045606,-2007.07929185,0.00011,2]
[333288693,1722027045617,-1494.82037085,0.00011,2]